bitfinex/quotes_SOLUSD_20250414
["timestamp","ask_amount","ask_price","bid_price","bid_amount"]
[1744672230846,0.063,129.66,129.65,69.09367568]
[1744672231339,0.063,129.66,129.65,28.85218348]
[1744672231847,0.063,129.66,129.65,36.56518348]
[1744672232352,0.063,129.66,129.65,80.02506819]
[1744672232640,0.063,129.67,129.66,0.42648471]
[1744672232844,0.063,129.69,129.68,28.85218348]
[1744672233051,0.063,129.69,129.68,82.52558348]
[1744672233553,0.063,129.69,129.68,53.6734]
[1744672233742,0.063,129.69,129.68,63.73377305]
[1744672233936,0.063,129.69,129.68,71.44497305]
[1744672238751,0.063,129.69,129.68,90.23678348]
[1744672239960,0.063,129.69,129.68,90.66326819]
[1744672240459,0.03,129.72,129.7,26.42648471]
[1744672240768,0.03,129.72,129.7,138.55356039]
[1744672240965,0.03,129.72,129.71,50.72834996]
[1744672241166,0.03,129.72,129.71,10.06037305]
[1744672241663,0.03,129.72,129.7,69.0334]
[1744672241965,0.03,129.72,129.71,10.06037305]
[1744672242758,0.03,129.72,129.71,17.76987305]
[1744672244865,0.03,129.72,129.71,36.56168348]
[1744672245032,0.0001,129.73,129.72,69.23583725]
[1744672245956,0.0001,129.73,129.72,112.26923725]
[1744672246160,0.0001,129.73,129.72,118.65773725]
[1744672246465,0.0001,129.73,129.72,126.36663725]
[1744672247650,0.0001,129.73,129.72,156.36663725]
[1744672250144,0.0001,129.75,129.74,26.14216157]
[1744672250341,0.0001,129.75,129.74,90.14025776]
[1744672251568,0.0001,129.75,129.74,108.50558348]
[1744672252168,0.0001,129.75,129.74,116.21328348]
[1744672254071,0.0001,129.75,129.74,116.63976819]
[1744672254240,0.0001,129.76,129.75,0.42648471]
[1744672254443,0.0001,129.76,129.75,10.48685776]
[1744672254745,0.0001,129.78,129.77,0.42648471]
[1744672254935,0.0001,129.78,129.77,112.55356039]
[1744672255541,0.0001,129.78,129.77,79.59148348]
[1744672259874,0.0001,129.78,129.77,80.01796819]
[1744672261476,0.0001,129.79,129.78,18.79181043]
[1744672261682,0.0001,129.79,129.78,69.09367568]
[1744672262777,0.0001,129.8,129.79,0.42648471]
[1744672263076,0.0001,129.8,129.79,39.89866819]
[1744672263276,0.0001,129.8,129.79,47.60336819]
[1744672264050,0.0001,129.82,129.81,26.42648471]
[1744672264268,0.0001,129.82,129.81,98.31206819]
[1744672264571,0.0001,129.82,129.81,97.88558348]
[1744672264962,0.0001,129.82,129.81,79.09377305]
[1744672265169,0.0001,129.82,129.81,36.62]
[1744672265369,0.0001,129.82,129.81,54.38387305]
[1744672265758,0.0001,129.82,129.81,73.17568348]
[1744672265954,0.0001,129.82,129.81,73.60216819]
[1744672266161,0.0001,129.82,129.81,116.63556819]
[1744672266376,0.0001,129.82,129.81,76.7369]
[1744672266566,0.0001,129.82,129.77,53.09377305]
[1744672266567,10.06047305,129.82,129.77,53.09377305]
[1744672266875,10.06037305,129.81,129.76,40.08833462]
[1744672267071,10.06047305,129.82,129.78,10.06037305]
[1744672267276,0.0001,129.82,129.79,34.45261292]
[1744672267466,0.0001,129.82,129.8,7.7041]
[1744672267777,0.0001,129.82,129.79,7.7044]
[1744672268076,0.0001,129.82,129.79,23.36520249]
[1744672268474,0.0001,129.82,129.81,41.66080249]
[1744672268664,0.0001,129.82,129.81,52.28080249]
[1744672268980,0.0001,129.82,129.81,71.49909763]
[1744672269579,0.0001,129.82,129.81,79.20259763]
[1744672271953,0.0001,129.82,129.81,78.77611292]
[1744672273159,0.0001,129.82,129.81,79.20259763]
[1744672273481,0.0001,129.82,129.81,78.77611292]
[1744672274555,0.0001,129.82,129.81,122.23599763]
[1744672275070,0.0001,129.82,129.81,77.01770249]
[1744672275668,0.0001,129.82,129.81,96.23599763]
[1744672276182,0.03,129.84,129.83,18.79181043]
[1744672276481,0.03,129.84,129.83,77.48591292]
[1744672277766,0.03,129.84,129.83,85.18821292]
[1744672285201,2.8103279,129.88,129.84,0.14216157]
[1744672285500,2.8103279,129.88,129.86,15.66080249]
[1744672285704,2.8103279,129.88,129.87,10.62]
[1744672288210,2.8103279,129.88,129.87,18.32]
[1744672294084,2.8103279,129.88,129.87,10.62]
[1744672295979,2.8103279,129.88,129.87,18.32]
[1744672296807,2.8103279,129.88,129.87,10.62]
[1744672298292,12.8213626,129.88,129.87,10.62]
[1744672298494,12.8213626,129.88,129.83,10.68]
[1744672298711,10.0110347,129.86,129.83,10.68]
[1744672300219,17.7118347,129.86,129.83,10.68]
[1744672300395,10.0110347,129.84,129.79,293.8733]
[1744672300591,40.0441388,129.84,129.8,30.0]
[1744672300791,10.0110347,129.81,129.8,30.0]
[1744672300999,1.5311,129.85,129.8,30.0]
[1744672301207,1.5311,129.85,129.79,28.3957347]
[1744672301514,10.0110347,129.83,129.79,18.3847]
[1744672302012,10.0110347,129.8,129.79,10.68]
[1744672302210,10.0110347,129.8,129.78,0.063]
[1744672302715,10.0110347,129.81,129.78,0.063]
[1744672304128,10.0110347,129.79,129.78,0.063]
[1744672304426,11.5293347,129.8,129.78,0.063]
[1744672305297,10.0110347,129.79,129.78,0.063]
[1744672306103,17.7157347,129.79,129.78,0.063]
[1744672310018,7.7047,129.79,129.78,0.063]
[1744672310219,19.2335347,129.8,129.78,0.063]
[1744672310402,9.2225,129.8,129.78,0.063]
[1744672310723,19.2335347,129.8,129.78,0.063]
[1744672311203,10.0110347,129.79,129.78,0.063]
[1744672311922,10.43751941,129.79,129.78,0.063]
[1744672312109,18.14221941,129.79,129.78,0.063]
[1744672316102,17.7157347,129.79,129.78,0.063]
[1744672317127,1.5183,129.8,129.78,0.063]
[1744672317329,10.0110347,129.82,129.78,0.063]
[1744672318213,10.0110347,129.8,129.78,0.063]
[1744672319444,7.7047,129.79,129.78,0.063]
[1744672319614,17.7157347,129.79,129.78,0.063]
[1744672320834,18.14221941,129.79,129.78,0.063]
[1744672327621,44.79181043,129.77,129.76,0.063]
[1744672327941,36.0110347,129.77,129.76,0.063]
[1744672329120,43.7169347,129.77,129.76,0.063]
[1744672330748,9.3412,129.79,129.76,10.0740347]
[1744672331124,9.3413,129.79,129.76,10.0740347]
[1744672331338,7.7048,129.79,129.76,10.0740347]
[1744672331537,17.7154347,129.8,129.76,10.0740347]
[1744672334754,17.7154347,129.8,129.76,0.063]
[1744672334941,10.0110347,129.79,129.76,0.063]
[1744672336553,7.7053,129.78,129.76,0.063]
[1744672338462,17.7159347,129.79,129.76,0.063]
[1744672347168,10.0110347,129.77,129.76,0.063]
[1744672347968,10.0110347,129.78,129.76,0.063]
[1744672348951,17.7163347,129.78,129.76,0.063]
[1744672351280,10.0110347,129.77,129.76,0.063]
[1744672353456,17.7169347,129.77,129.76,0.063]
[1744672354175,17.7166347,129.78,129.76,0.063]
[1744672354481,10.0110347,129.82,129.77,10.0110347]
[1744672354656,22.01572555,129.83,129.78,10.0110347]
[1744672355476,29.71832555,129.83,129.78,17.7159347]
[1744672356082,12.00469085,129.83,129.82,10.0110347]
[1744672356262,0.03,129.84,129.82,10.0110347]
[1744672356466,0.03,129.84,129.83,10.0110347]
[1744672357572,0.03,129.84,129.83,17.7133347]
[1744672358086,0.03,129.84,129.83,29.8635347]
[1744672358903,0.03,129.84,129.83,48.65534513]
[1744672359085,0.03,129.84,129.83,95.16578393]
[1744672359282,0.0001,129.84,129.83,95.59226864]
[1744672359457,0.03,129.85,129.84,18.79181043]
[1744672359785,0.03,129.85,129.84,76.54868393]
[1744672359964,0.03,129.85,129.84,76.97516864]
[1744672361661,2.8103279,129.88,129.85,0.42648471]
[1744672361870,2.8103279,129.88,129.87,28.80284513]
[1744672363185,2.8103279,129.88,129.87,29.22932984]
[1744672363381,2.8103279,129.88,129.87,35.42102984]
[1744672363775,2.8103279,129.88,129.87,43.12102984]
[1744672365592,2.8103279,129.88,129.87,87.73762984]
[1744672365764,0.0001,129.92,129.9,26.092272]
[1744672365972,0.03,129.96,129.93,0.42648471]
[1744672366178,0.03,129.96,129.93,53.0443347]
[1744672366363,10.0410347,129.96,129.93,43.0333]
[1744672366567,10.0110347,129.95,129.93,43.0333]
[1744672366767,10.0110347,129.95,129.92,10.62]
[1744672366768,10.0110347,129.94,129.89,10.0110347]
[1744672366986,10.0110347,129.94,129.9,10.62]
[1744672367285,10.0110347,129.94,129.92,10.0110347]
[1744672367286,4.9532184,129.94,129.92,10.0110347]
[1744672367490,4.9532184,129.94,129.9,20.6310347]
[1744672368093,4.9532184,129.94,129.9,28.3289347]
[1744672369191,4.9532184,129.94,129.9,33.95003849]
[1744672370493,12.6493184,129.94,129.9,26.25213849]
[1744672370696,4.9532184,129.94,129.9,33.95023849]
[1744672370986,4.9532184,129.94,129.91,15.63213849]
[1744672372161,4.9532184,129.94,129.9,18.3181]
[1744672372364,4.9532184,129.94,129.9,33.95023849]
[1744672372879,12.6493184,129.94,129.9,26.25213849]
[1744672373087,12.6493184,129.94,129.9,33.95023849]
[1744672373394,4.9532184,129.94,129.91,15.63213849]
[1744672373991,4.9532184,129.94,129.92,15.63213849]
[1744672375393,4.9532184,129.94,129.92,23.32903849]
[1744672375606,4.9532184,129.94,129.92,7.6969]
[1744672376296,4.9532184,129.94,129.91,23.32953849]
[1744672379493,4.9532184,129.94,129.91,7.6974]
[1744672380097,4.9532184,129.94,129.91,23.32953849]
[1744672380990,4.9532184,129.94,129.92,15.63213849]
[1744672381196,4.9532184,129.94,129.91,7.6974]
[1744672382002,4.9532184,129.94,129.91,23.32953849]
[1744672382294,4.9532184,129.94,129.92,15.63213849]
[1744672382973,4.9532184,129.94,129.92,7.6969]
[1744672383579,20.58535689,129.94,129.9,26.25213849]
[1744672383783,28.28125689,129.94,129.9,18.3179]
[1744672384080,15.63213849,129.91,129.88,43.0333]
[1744672384269,15.63213849,129.9,129.86,10.6]
[1744672384470,15.63213849,129.87,129.83,7.702]
[1744672384684,15.63213849,129.86,129.84,10.6]
[1744672385687,23.33283849,129.86,129.84,10.6]
[1744672386206,15.63213849,129.85,129.84,10.6]
[1744672387208,15.63213849,129.86,129.84,10.6]
[1744672387613,15.63213849,129.85,129.84,10.6]
[1744672388205,0.42648471,129.88,129.84,10.6]
[1744672388381,15.63213849,129.85,129.84,10.6]
[1744672390098,23.33323849,129.85,129.84,10.6]
[1744672390299,23.33323849,129.85,129.8,10.6]
[1744672390507,15.63213849,129.83,129.8,10.6]
[1744672391585,15.63213849,129.82,129.8,10.6]
[1744672392396,15.63213849,129.81,129.78,0.063]
[1744672392602,15.63213849,129.8,129.78,0.063]
[1744672393109,15.63213849,129.79,129.78,0.063]
[1744672393404,15.63213849,129.8,129.78,0.063]
[1744672393607,15.63213849,129.79,129.78,0.063]
[1744672394195,23.33683849,129.79,129.78,0.063]
[1744672396003,15.63213849,129.79,129.78,0.063]
[1744672396203,1.73016157,129.83,129.78,0.063]
[1744672396423,15.63213849,129.81,129.78,0.063]
[1744672397392,15.63213849,129.82,129.78,0.063]
[1744672397708,2.2363933,129.81,129.78,15.69513849]
[1744672398013,2.2363933,129.81,129.8,15.63213849]
[1744672398509,2.2363933,129.81,129.79,15.63213849]
[1744672399709,2.2363933,129.81,129.78,7.7681]
[1744672400091,2.2363933,129.81,129.78,23.40023849]
[1744672400398,2.2363933,129.81,129.79,15.63213849]
[1744672400591,2.2363933,129.81,129.8,15.63213849]
[1744672402188,2.2363933,129.81,129.8,23.33623849]
[1744672402810,2.2363933,129.81,129.79,23.33663849]
[1744672403198,2.2363933,129.81,129.78,23.40023849]
[1744672409598,2.2363933,129.81,129.79,15.63213849]
[1744672411523,2.2363933,129.81,129.79,23.33673849]
[1744672413116,2.2363933,129.81,129.79,10.0212324]
[1744672413610,2.2363933,129.81,129.78,0.063]
[1744672413611,2.2363933,129.81,129.8,10.0212324]
[1744672414003,2.2363933,129.81,129.79,10.0212324]
[1744672414506,2.2363933,129.81,129.8,10.0212324]
[1744672415823,2.2363933,129.81,129.8,17.7253324]
[1744672416318,2.2363933,129.81,129.79,17.7256324]
[1744672418122,2.2363933,129.81,129.78,0.063]
[1744672418123,2.2363933,129.81,129.78,17.7892324]
[1744672418298,2.2363933,129.81,129.8,10.0212324]
[1744672418625,2.2363933,129.81,129.8,39.43304283]
[1744672419699,2.2363933,129.81,129.8,20.6412324]
[1744672420307,2.2363933,129.81,129.8,28.3453324]
[1744672424131,2.2363933,129.81,129.8,20.6412324]
[1744672424428,2.2363933,129.81,129.8,10.62]
[1744672426335,2.2363933,129.81,129.8,28.3453324]
[1744672431244,2.2363933,129.81,129.8,47.13714283]
[1744672431945,9.33e-05,129.81,129.8,47.56362754]
[1744672432443,9.33e-05,129.81,129.8,47.13714283]
[1744672432827,9.33e-05,129.81,129.8,49.08882754]
[1744672433139,9.33e-05,129.81,129.8,92.12212754]
[1744672435243,9.33e-05,129.81,129.8,97.74841454]
[1744672441127,9.33e-05,129.81,129.8,86.70192983]
[1744672441428,9.33e-05,129.81,129.8,97.74841454]
[1744672442840,2.7168251,129.88,129.84,18.79181043]
[1744672443046,2.7168251,129.88,129.86,15.6475194]
[1744672443748,2.7168251,129.88,129.87,15.6475194]
[1744672444638,2.7168251,129.88,129.87,23.3475194]
[1744672446227,2.7168251,129.88,129.86,23.3478194]
[1744672446428,2.7168251,129.88,129.85,26.2675194]
[1744672447248,2.7168251,129.88,129.85,33.9683194]
[1744672448836,2.7168251,129.88,129.85,18.3208]
[1744672449039,2.7168251,129.88,129.85,33.9683194]
[1744672449457,2.7168251,129.88,129.85,23.3483194]
[1744672451256,2.7168251,129.88,129.85,7.7008]
[1744672451754,26.0637445,129.88,129.84,33.9489194]
[1744672451951,18.3643445,129.88,129.84,33.9489194]
[1744672452149,2.7168251,129.88,129.84,33.9489194]
[1744672453045,2.7168251,129.88,129.87,15.6475194]
[1744672453240,2.7168251,129.88,129.87,23.3475194]
[1744672454233,27.7016445,129.88,129.83,18.3023]
[1744672454442,15.6475194,129.87,129.83,10.6]
[1744672454956,15.6475194,129.86,129.83,10.6]
[1744672455161,10.01769923,129.86,129.83,10.6]
[1744672455360,10.01769923,129.86,129.83,18.3022]
[1744672455653,17.71829923,129.86,129.83,10.6]
[1744672456751,10.01769923,129.84,129.83,10.6]
[1744672456952,10.01769923,129.84,129.79,20.61769923]
[1744672457255,15.65715382,129.84,129.8,15.65715382]
[1744672457461,15.65715382,129.84,129.8,23.36105382]
[1744672458158,15.65715382,129.84,129.8,7.7039]
[1744672461561,15.65715382,129.84,129.8,23.36105382]
[1744672462964,15.65715382,129.84,129.8,7.7039]
[1744672463466,41.65715382,129.87,129.82,15.65715382]
[1744672463664,15.65715382,129.86,129.81,15.65715382]
[1744672463982,15.65715382,129.85,129.81,15.65715382]
[1744672464465,15.65715382,129.85,129.81,23.36025382]
[1744672464767,15.65715382,129.85,129.81,7.7031]
[1744672465455,15.65715382,129.84,129.8,7.7038]
[1744672465768,23.35835382,129.85,129.8,23.36095382]
[1744672465956,15.65715382,129.85,129.8,23.36095382]
[1744672466268,15.65715382,129.85,129.81,15.65715382]
[1744672466454,15.65715382,129.87,129.82,23.36005382]
[1744672466857,12.0542251,129.88,129.82,23.36005382]
[1744672467057,15.65715382,129.87,129.82,23.36005382]
[1744672467247,15.65715382,129.87,129.83,15.65715382]
[1744672467567,4.3545251,129.88,129.85,15.65715382]
[1744672468263,4.3545251,129.88,129.84,26.27715382]
[1744672468470,4.3545251,129.88,129.84,23.35845382]
[1744672475062,2.7168251,129.88,129.85,15.65715382]
[1744672476160,2.7168251,129.88,129.86,7.7006]
[1744672477084,2.7168251,129.88,129.86,23.35775382]
[1744672477255,2.7168251,129.88,129.87,15.65715382]
[1744672478174,2.7168251,129.88,129.87,23.35715382]
[1744672480871,2.7168251,129.88,129.87,7.7]
[1744672482683,2.7168251,129.88,129.85,10.01021373]
[1744672483986,2.7168251,129.88,129.87,10.01021373]
[1744672485386,2.7168251,129.88,129.87,17.71021373]
[1744672486557,2.7168251,129.88,129.86,17.71051373]
[1744672486764,2.7168251,129.88,129.85,10.01021373]
[1744672487179,2.7168251,129.88,129.84,10.01021373]
[1744672487692,2.7168251,129.88,129.85,17.71091373]
[1744672489484,2.7168251,129.88,129.86,10.01021373]
[1744672489788,2.7168251,129.88,129.87,17.71021373]
[1744672491583,2.7168251,129.88,129.86,17.71061373]
[1744672491758,2.7168251,129.88,129.86,7.7004]
[1744672491962,2.7168251,129.88,129.86,17.71061373]
[1744672492476,2.7168251,129.88,129.87,10.01021373]
[1744672493887,2.7168251,129.88,129.86,17.71061373]
[1744672494266,2.7168251,129.88,129.87,10.01021373]
[1744672495790,2.7168251,129.88,129.87,28.80202416]
[1744672496291,2.7168251,129.88,129.87,36.50202416]
[1744672496787,2.7168251,129.88,129.87,36.92850887]
[1744672497181,2.7168251,129.88,129.87,42.55058459]
[1744672497585,2.51e-05,129.88,129.87,49.04588459]
[1744672500292,0.03,129.92,129.9,26.0]
[1744672500497,0.03,129.92,129.91,26.23228945]
[1744672500803,0.03,129.92,129.91,10.6]
[1744672501888,0.03,129.92,129.91,33.92988945]
[1744672502988,0.03,129.92,129.91,10.6]
[1744672504292,15.66228945,129.92,129.88,15.63228945]
[1744672505394,15.66228945,129.92,129.88,23.33158945]
[1744672505594,23.35958945,129.92,129.88,23.33158945]
[1744672506896,0.03,129.92,129.89,15.63228945]
[1744672507103,0.03,129.92,129.9,15.63228945]
[1744672507591,0.03,129.92,129.91,15.63228945]
[1744672508003,0.03,129.92,129.9,15.63228945]
[1744672509393,0.03,129.92,129.91,15.63228945]
[1744672510999,0.03,129.92,129.9,15.63228945]
[1744672511295,0.03,129.92,129.89,23.33078945]
[1744672511996,0.03,129.92,129.91,15.63228945]
[1744672513393,0.03,129.92,129.91,34.42409988]
[1744672513596,0.03,129.92,129.91,42.12169988]
[1744672513772,0.03,129.92,129.91,23.32988945]
[1744672514387,0.03,129.92,129.91,42.12169988]
[1744672515076,0.03,129.92,129.91,23.32988945]
[1744672516184,0.0001,129.92,129.91,42.54818459]
[1744672516579,0.0001,129.92,129.91,42.12169988]
[1744672519286,0.0001,129.92,129.91,36.48825642]
[1744672519802,0.0001,129.92,129.91,36.91474113]
[1744672520192,0.03,129.96,129.95,7.6952]
[1744672520392,0.03,129.96,129.95,18.2952]
[1744672520613,0.03,129.96,129.95,28.29404599]
[1744672521585,0.03,129.96,129.95,20.59884599]
[1744672521803,0.03,129.96,129.95,18.2952]
[1744672521982,0.03,129.96,129.95,28.29404599]
[1744672523508,0.03,129.96,129.95,10.6]
[1744672525011,0.03,129.96,129.95,18.2952]
[1744672525188,0.03,129.96,129.95,28.29404599]
[1744672526883,0.03,129.96,129.95,10.6]
[1744672527418,0.03,129.96,129.95,18.2952]
[1744672528109,0.03,129.96,129.95,28.29404599]
[1744672528504,0.03,129.96,129.95,28.43620756]
[1744672528810,0.03,130.01,129.98,18.79181043]
[1744672528988,0.03,130.01,130.0,9.99884599]
[1744672529195,0.03,130.01,130.0,10.6]
[1744672530013,0.03,130.01,129.97,23.30260514]
[1744672530689,7.7217,130.01,129.97,23.30260514]
[1744672531820,1.5557,130.0,129.96,10.6]
[1744672532011,17.16430514,130.0,129.96,10.6]
[1744672532706,15.60860514,129.99,129.96,10.6]
[1744672534219,23.30200514,129.98,129.96,10.6]
[1744672534693,15.60860514,129.98,129.96,10.6]
[1744672535314,15.60860514,129.98,129.91,19.2436]
[1744672535520,15.60860514,129.95,129.89,7.6988]
[1744672535695,15.60860514,129.93,129.89,10.6]
[1744672536020,15.60860514,129.92,129.89,10.6]
[1744672536202,23.30590514,129.92,129.89,10.6]
[1744672537109,15.60860514,129.9,129.89,10.6]
[1744672537313,15.60860514,129.9,129.85,23.30950514]
[1744672537521,15.60860514,129.89,129.86,30.0]
[1744672537703,15.60860514,129.89,129.84,34.09010514]
[1744672537903,15.60860514,129.88,129.84,34.09010514]
[1744672538232,15.60860514,129.86,129.82,15.67160514]
[1744672538513,15.60860514,129.86,129.83,30.0]
[1744672538719,23.30870514,129.87,129.83,30.0]
[1744672539305,23.30870514,129.87,129.82,23.37450514]
[1744672539723,1.6407,129.88,129.86,15.60860514]
[1744672539991,6.0465,129.9,129.86,15.60860514]
[1744672540127,6.0465,129.9,129.87,15.60860514]
[1744672540428,1.6407,129.91,129.89,15.60860514]
[1744672540923,1.6407,129.91,129.88,15.60860514]
[1744672541824,7.6967,129.93,129.89,15.60860514]
[1744672542127,23.30530514,129.93,129.88,23.30780514]
[1744672542507,15.60860514,129.92,129.88,23.30780514]
[1744672545035,15.60860514,129.92,129.87,23.30830514]
[1744672545202,15.60860514,129.91,129.87,15.60860514]
[1744672545406,15.60860514,129.9,129.85,34.08940514]
[1744672545834,23.30680514,129.9,129.85,34.08940514]
[1744672546320,15.60860514,129.89,129.85,10.78]
[1744672546820,15.60860514,129.89,129.85,18.4811]
[1744672547143,15.60860514,129.87,129.82,0.063]
[1744672547311,15.60860514,129.86,129.82,30.063]
[1744672547505,15.60860514,129.87,129.83,15.60860514]
[1744672547727,17.12650514,129.88,129.83,15.60860514]
[1744672547908,17.12650514,129.88,129.84,15.60860514]
[1744672548530,17.12650514,129.88,129.84,23.31000514]
[1744672549617,15.60860514,129.87,129.83,23.31070514]
[1744672550508,17.12650514,129.88,129.84,15.60860514]
[1744672550710,17.12650514,129.88,129.84,23.31010514]
[1744672551636,1.5179,129.88,129.85,15.60860514]
[1744672552014,1.5179,129.88,129.84,23.31010514]
[1744672552313,1.5179,129.88,129.83,15.60860514]
[1744672552314,15.60860514,129.87,129.83,15.60860514]
[1744672552624,15.60860514,129.87,129.82,23.37400514]
[1744672553143,23.30870514,129.87,129.82,23.37400514]
[1744672553710,15.60860514,129.87,129.83,15.60860514]
[1744672553923,1.5179,129.88,129.85,15.60860514]
[1744672555017,1.5179,129.88,129.85,23.30920514]
[1744672555424,17.12650514,129.88,129.84,15.60860514]
[1744672555739,15.60860514,129.87,129.83,15.60860514]
[1744672556616,15.60860514,129.87,129.83,23.31090514]
[1744672558631,1.5179,129.88,129.85,15.60860514]
[1744672560325,1.5179,129.88,129.86,15.60860514]
[1744672560924,1.5179,129.88,129.84,15.60860514]
[1744672561122,15.60860514,129.87,129.83,15.60860514]
[1744672561563,15.60860514,129.87,129.82,23.37430514]
[1744672562429,1.5179,129.88,129.84,15.60860514]
[1744672562739,1.5179,129.88,129.85,7.7011]
[1744672562954,106.13651043,129.91,129.85,7.7011]
[1744672562955,1.6338,129.91,129.87,15.60860514]
[1744672563236,1.6338,129.94,129.9,15.60860514]
[1744672563413,0.14216157,129.97,129.93,15.60860514]
[1744672563613,0.42648471,129.97,129.93,15.60860514]
[1744672563836,15.60860514,129.95,129.91,10.8]
[1744672564133,15.60860514,129.95,129.91,26.40860514]
[1744672564337,25.07826671,129.98,129.93,15.60860514]
[1744672564534,25.07826671,129.98,129.94,15.60860514]
[1744672565134,25.07826671,129.98,129.94,23.30440514]
[1744672565622,1.6338,129.98,129.94,23.30440514]
[1744672565940,94.78256157,130.0,129.96,15.60860514]
[1744672566130,88.4925,130.0,129.96,15.60860514]
[1744672566730,15.60860514,129.99,129.95,15.60860514]
[1744672566930,15.60860514,129.97,129.91,10.8]
[1744672567129,80.8,130.0,129.96,15.60860514]
[1744672567340,15.89292828,130.0,129.95,15.60860514]
[1744672568444,23.30140514,129.99,129.95,15.60860514]
[1744672568630,23.58542828,130.0,129.95,23.30370514]
[1744672568824,1.6407,130.01,129.97,15.60860514]
[1744672569029,0.03,130.01,129.98,15.60860514]
[1744672570957,0.03,130.01,129.96,7.6943]
[1744672571245,15.63860514,130.01,129.96,23.30290514]
[1744672571446,15.63860514,130.01,129.97,15.60860514]
[1744672571753,0.03,130.01,129.99,15.60860514]
[1744672572452,0.03,130.01,129.98,23.30180514]
[1744672572955,0.03,130.01,129.99,15.60860514]
[1744672573849,0.03,130.01,129.97,15.60860514]
[1744672574059,0.03,130.01,129.98,15.60860514]
[1744672574228,0.03,130.01,130.0,15.60860514]
[1744672576150,0.03,130.01,130.0,23.30090514]
[1744672577248,0.0001,130.01,130.0,48.79867714]
[1744672577449,0.03,130.04,130.03,44.79181043]
[1744672577657,0.03,130.04,130.03,71.20041557]
[1744672578153,0.0001,130.04,130.03,79.31740028]
[1744672578355,0.03,130.07,130.06,44.79181043]
[1744672578652,0.03,130.07,130.06,60.40041557]
[1744672578849,0.03,130.07,130.06,41.60860514]
[1744672580260,0.03,130.07,130.06,68.08911557]
[1744672580466,0.03,130.09,130.08,0.14216157]
[1744672580642,0.03,130.09,130.08,42.01721028]
[1744672580838,0.03,130.09,130.08,60.80902071]
[1744672581147,0.03,130.09,130.08,26.40860514]
[1744672581450,0.03,130.09,130.08,60.80902071]
[1744672581650,0.03,130.09,130.08,61.23550542]
[1744672582360,0.03,130.09,130.08,68.92300542]
[1744672583249,0.03,130.09,130.08,87.56156148]
[1744672586861,0.03,130.09,130.08,68.34326634]
[1744672587060,0.03,130.09,130.08,43.41538317]
[1744672587961,0.03,130.09,130.08,35.72788317]
[1744672588163,0.03,130.09,130.08,10.8]
[1744672588464,0.03,130.09,130.08,35.72788317]
[1744672589261,0.03,130.09,130.06,10.8]
[1744672589561,24.95788317,130.09,130.06,10.8]
[1744672589943,0.03,130.09,130.06,10.8]
[1744672590148,24.95788317,130.09,130.06,10.8]
[1744672590741,0.03,130.09,130.07,24.92788317]
[1744672590946,0.03,130.09,130.06,18.4886]
[1744672591146,0.03,130.09,130.08,24.92788317]
[1744672591548,0.03,130.09,130.07,24.92788317]
[1744672593168,0.03,130.09,130.06,10.8]
[1744672593352,24.95788317,130.09,130.06,10.8]
[1744672594172,0.03,130.09,130.06,35.72788317]
[1744672595172,0.03,130.09,130.07,24.92788317]
[1744672596582,0.03,130.09,130.07,32.61598317]
[1744672596876,0.03,130.09,130.07,24.92788317]
[1744672597282,0.03,130.09,130.06,18.4885]
[1744672597572,0.03,130.09,130.08,24.92788317]
[1744672598573,0.03,130.09,130.06,35.72788317]
[1744672598761,0.03,130.09,130.07,24.92788317]
[1744672598963,0.03,130.09,130.08,24.92788317]
[1744672599582,0.03,130.09,130.06,43.41608317]
[1744672600152,0.03,130.09,130.07,24.92788317]
[1744672600367,0.03,130.09,130.08,24.92788317]
[1744672600952,0.03,130.09,130.07,24.92788317]
[1744672602977,0.03,130.09,130.07,32.61598317]
[1744672603152,0.03,130.09,130.07,23.27882848]
[1744672605374,0.03,130.09,130.08,15.59072848]
[1744672605958,0.03,130.09,130.07,23.27882848]
[1744672606364,0.03,130.09,130.07,15.59072848]
[1744672606975,0.03,130.09,130.06,10.8]
[1744672607181,17.09772848,130.08,130.06,10.8]
[1744672607564,24.78552848,130.08,130.06,10.8]
[1744672607968,24.78552848,130.08,130.02,7.6908]